bitfinex-derivatives/quotes_ETHF0:USTF0_20250104
["timestamp","ask_amount","ask_price","bid_price","bid_amount"]
[1735989333246,3.6438,3591.8,3591.6,1.02436353]
[1735989333247,0.27851,3591.7,3591.6,1.02436353]
[1735989337540,0.27851,3591.7,3591.6,1.30288353]
[1735989338843,0.27851,3591.7,3591.6,1.02436353]
[1735989342050,0.27852,3591.6,3591.5,0.8527]
[1735989342249,0.27852,3591.6,3591.5,1.87706353]
[1735989347340,0.27852,3591.6,3591.5,1.02436353]
[1735989353150,4.23216353,3591.7,3591.2,1.47506353]
[1735989353457,0.27854,3591.3,3591.2,1.47506353]
[1735989355549,0.27854,3591.3,3591.2,1.75361353]
[1735989356956,0.27854,3591.3,3591.2,1.47506353]
[1735989357454,0.27854,3591.3,3591.2,1.75361353]
[1735989358057,0.27854,3591.3,3591.2,1.47506353]
[1735989359958,0.27854,3591.3,3591.2,0.4507]
[1735989360158,0.27854,3591.3,3591.2,1.47506353]
[1735989360362,0.27854,3591.3,3591.2,1.75361353]
[1735989360660,0.27854,3591.3,3591.2,1.47506353]
[1735989361452,0.27854,3591.3,3591.2,1.75361353]
[1735989361863,0.27854,3591.3,3591.2,1.47506353]
[1735989363447,0.27854,3591.3,3591.2,1.75361353]
[1735989364059,0.27854,3591.3,3591.2,1.47506353]
[1735989365062,0.27854,3591.3,3591.2,1.75361353]
[1735989365660,2.46685024,3591.3,3591.2,1.75361353]
[1735989366759,2.46685024,3591.3,3591.2,6.11562034]
[1735989367064,2.46685024,3591.3,3591.2,5.83707034]
[1735989368464,2.46685024,3591.3,3591.2,6.11562034]
[1735989369059,2.46685024,3591.3,3591.2,5.83707034]
[1735989370962,2.46685024,3591.3,3591.2,1.47506353]
[1735989371561,2.46685024,3591.3,3591.2,1.75361353]
[1735989371766,2.46685024,3591.3,3591.2,1.47506353]
[1735989371967,2.46685024,3591.3,3591.2,0.4507]
[1735989372168,0.27854,3591.3,3591.2,0.4507]
[1735989372367,1.30290353,3591.3,3591.2,0.4507]
[1735989372668,1.30290353,3591.3,3591.1,6.9694112]
[1735989372669,0.27855,3591.2,3591.1,6.9694112]
[1735989373659,0.27855,3591.2,3591.1,4.90549427]
[1735989373870,0.27858,3590.8,3590.7,5.33049427]
[1735989374462,0.27858,3590.8,3590.7,6.3548578]
[1735989375266,0.27857,3590.9,3590.8,0.27857]
[1735989375469,3.48637,3591.0,3590.9,0.27857]
[1735989375764,6.49375066,3591.0,3590.9,1.30293353]
[1735989375969,6.77232066,3591.0,3590.9,1.30293353]
[1735989377071,3.48637,3591.0,3590.9,1.30293353]
[1735989380874,3.2078,3591.0,3590.9,1.30293353]
[1735989381070,0.27857,3591.0,3590.9,1.30293353]
[1735989381375,2.46879284,3591.1,3591.0,0.27857]
[1735989381576,2.46879284,3591.1,3591.0,0.69057]
[1735989384387,2.46879284,3591.1,3591.0,0.412]
[1735989385373,2.46879284,3591.1,3591.0,0.69057]
[1735989385873,2.46879284,3591.1,3591.0,0.412]
[1735989391581,3.56451066,3591.1,3591.0,0.412]
[1735989392080,0.27858,3590.8,3590.7,0.425]
[1735989393379,0.27858,3590.8,3590.7,5.77706353]
[1735989393380,2.46949515,3590.8,3590.7,5.77706353]
[1735989394876,2.46949515,3590.8,3590.7,1.44936353]
[1735989395068,2.46949515,3590.8,3590.7,1.72795353]
[1735989395272,2.46949515,3590.8,3590.7,1.44936353]
[1735989397882,2.46949515,3590.8,3590.7,1.72795353]
[1735989400377,0.27858,3590.8,3590.7,5.77633943]
[1735989401682,2.46949515,3590.8,3590.7,1.44936353]
[1735989404582,5.67729515,3590.8,3590.7,1.44936353]
[1735989405783,5.39871515,3590.8,3590.7,1.72795353]
[1735989405982,5.67729515,3590.8,3590.7,1.72795353]
[1735989407176,3.48638,3590.8,3590.7,6.05562365]
[1735989409591,0.27858,3590.8,3590.7,6.05562365]
[1735989417593,2.46949515,3590.9,3590.8,0.27858]
[1735989420606,0.27858,3590.8,3590.7,6.05562365]
[1735989421606,2.19091515,3590.9,3590.7,5.77703365]
[1735989421801,2.19091515,3590.9,3590.8,0.27858]
[1735989422508,2.19091515,3590.9,3590.8,4.60625012]
[1735989423911,2.19091515,3591.2,3591.1,0.27856]
[1735989424510,2.46946515,3591.2,3591.1,1.57776]
[1735989425104,2.46946515,3591.2,3591.1,5.90543012]
[1735989426209,2.19091515,3591.3,3591.1,5.62687012]
[1735989426405,2.46946515,3591.3,3591.2,1.30291353]
[1735989427710,2.19091515,3591.3,3591.2,1.30291353]
[1735989430011,5.67724515,3591.5,3591.4,0.27854]
[1735989430212,5.67724515,3591.5,3591.4,1.30290353]
[1735989431006,5.67724515,3591.5,3591.4,1.02436353]
[1735989431216,5.67724515,3591.5,3591.4,1.30290353]
[1735989431716,5.67724515,3591.5,3591.4,1.02436353]
[1735989433209,5.67724515,3591.5,3591.4,1.30290353]
[1735989434307,2.46944515,3591.5,3591.4,1.30290353]
[1735989434720,0.27853,3591.5,3591.4,1.30290353]
[1735989435618,2.46944515,3591.5,3591.4,1.30290353]
[1735989437912,0.27853,3591.5,3591.4,1.30290353]
[1735989438121,2.46944515,3591.6,3591.5,0.27853]
[1735989438322,2.19091515,3591.6,3591.5,1.30289353]
[1735989438512,2.19091515,3591.6,3591.5,0.70033]
[1735989439112,2.19091515,3591.6,3591.5,1.72469353]
[1735989439914,2.19091515,3591.8,3591.7,0.27851]
[1735989440115,2.19091515,3591.8,3591.7,1.30287353]
[1735989441320,2.46941515,3591.9,3591.7,1.30287353]
[1735989442122,2.46941515,3591.9,3591.8,0.2785]
[1735989442821,0.2785,3591.9,3591.8,0.2785]
[1735989443623,2.19091515,3592.0,3591.7,1.02436353]
[1735989443821,2.19091515,3592.0,3591.9,1.02436353]
[1735989444321,2.46940515,3592.0,3591.9,1.02436353]
[1735989446327,2.46940515,3592.0,3591.9,1.30286353]
[1735989446328,2.19091515,3592.0,3591.9,1.30286353]
[1735989446521,2.19091515,3592.0,3591.9,1.73206353]
[1735989448328,3.48625,3592.6,3591.9,5.76941]
[1735989448521,3.48625,3592.6,3592.5,1.02436353]
[1735989449332,0.27846,3592.4,3592.3,1.30282353]
[1735989450025,0.71526,3592.4,3592.3,1.30282353]
[1735989450927,0.4368,3592.4,3592.3,1.30282353]
[1735989452930,0.71526,3592.4,3592.3,1.30282353]
[1735989453132,0.4368,3592.4,3592.3,1.30282353]
[1735989453930,0.71526,3592.4,3592.3,1.30282353]
[1735989467334,0.71526,3592.4,3592.3,1.02436353]
[1735989467534,0.71526,3592.4,3592.3,1.30283353]
[1735989468241,0.27846,3592.4,3592.3,1.30283353]
[1735989471440,0.27846,3592.5,3592.4,0.27845]
[1735989471632,0.27846,3592.5,3592.4,1.72801353]
[1735989475535,5.39871515,3592.6,3592.4,1.44956353]
[1735989475740,5.67716515,3592.6,3592.5,0.27845]
[1735989475937,5.67716515,3592.6,3592.5,0.72765]
[1735989477149,3.48625,3592.6,3592.5,0.72765]
[1735989477639,3.48625,3592.6,3592.5,0.4492]
[1735989478738,0.27845,3592.6,3592.5,0.4492]
[1735989480447,2.46936515,3592.6,3592.5,0.4492]
[1735989480849,2.46936515,3592.6,3592.5,0.72765]
[1735989481050,5.67716515,3592.6,3592.5,0.72765]
[1735989481944,5.67716515,3592.6,3592.5,0.4492]
[1735989482747,5.67716515,3592.6,3592.5,0.72765]
[1735989482748,5.67715515,3592.6,3592.5,0.72765]
[1735989483449,3.48624,3592.6,3592.5,0.72765]
[1735989484245,3.48624,3592.6,3592.5,0.4492]
[1735989484450,3.48624,3592.6,3592.5,0.72765]
[1735989485153,6.77219066,3592.6,3592.5,0.4492]
[1735989485348,6.77219066,3592.6,3592.5,0.72765]
[1735989485946,6.77219066,3592.6,3592.5,0.4492]
[1735989486355,7.18992517,3592.6,3592.5,0.4492]
[1735989486946,7.18992517,3592.6,3592.5,0.72765]
[1735989487652,3.90397451,3592.6,3592.5,0.72765]
[1735989489948,3.90397451,3592.6,3592.5,0.4492]
[1735989493456,8.28279002,3592.6,3592.5,0.4492]
[1735989495853,8.28279002,3592.6,3592.5,4.7958802]
[1735989497960,5.07499002,3592.6,3592.5,5.0743302]
[1735989498553,5.07499002,3592.6,3592.5,4.7958802]
[1735989499761,0.69617451,3592.6,3592.5,4.7958802]
[1735989502460,5.07499002,3592.6,3592.5,4.7958802]
[1735989506962,3.98340607,3592.6,3592.5,11.31427177]
[1735989508464,0.69617451,3592.6,3592.5,0.4492]
[1735989509859,0.27844,3592.6,3592.5,4.80965059]
[1735989510355,4.37881551,3592.7,3592.6,0.27844]
[1735989510559,4.37881551,3592.7,3592.6,1.75280353]
[1735989511167,0.41773451,3592.7,3592.6,6.08058752]
[1735989511666,0.69616451,3592.7,3592.6,6.08058752]
[1735989512567,3.98342323,3592.7,3592.6,12.61826229]
[1735989514270,3.70499323,3592.7,3592.6,12.61826229]
[1735989515969,3.56567872,3592.9,3592.8,0.27843]
[1735989516167,3.56567872,3592.9,3592.8,1.30279353]
[1735989516668,3.56567872,3592.9,3592.8,1.02436353]
[1735989517069,3.98334949,3592.9,3592.8,5.35214752]
[1735989517467,3.98334949,3592.9,3592.8,5.63057752]
[1735989519468,3.98334949,3592.9,3592.8,12.16457198]
[1735989519469,0.69609077,3592.9,3592.8,12.16457198]
[1735989521174,3.98334949,3592.9,3592.8,12.16457198]
[1735989521777,3.98334949,3592.9,3592.8,11.88614198]
[1735989522574,3.98334949,3592.9,3592.8,5.35214752]
[1735989523763,3.98334949,3592.9,3592.8,5.63057752]
[1735989525479,0.27842,3592.9,3592.8,5.65891183]
[1735989528585,2.46767502,3592.9,3592.8,5.78486788]
[1735989529882,2.46767502,3592.9,3592.8,1.30279353]
[1735989530389,2.18925502,3592.9,3592.8,1.30279353]
[1735989530685,2.46767502,3592.9,3592.8,1.30279353]
[1735989531087,0.27842,3592.9,3592.8,1.30279353]
[1735989532481,2.46767502,3592.9,3592.8,5.65753477]
[1735989536287,2.18925502,3592.9,3592.8,5.65753477]
[1735989537892,2.46766502,3593.1,3593.0,0.27841]
[1735989538086,2.46766502,3593.1,3593.0,1.30277353]
[1735989539190,2.46766502,3593.1,3593.0,5.65604074]
[1735989543597,2.18925502,3593.1,3593.0,5.65604074]
[1735989545097,3.28725872,3593.3,3593.2,0.2784]
[1735989545292,2.23071374,3593.4,3593.3,0.27839]
[1735989545500,2.23071374,3593.4,3593.3,1.30275353]
[1735989545801,2.23071374,3593.4,3593.3,0.27839]
[1735989546092,2.50909374,3593.4,3593.3,1.30275353]
[1735989546697,0.27838,3593.4,3593.3,12.31665631]
[1735989547894,0.70908,3593.5,3593.4,0.27838]
[1735989548393,0.70908,3593.5,3593.4,0.70598]
[1735989550695,0.70908,3593.5,3593.4,0.4276]
[1735989550887,0.70908,3593.5,3593.4,0.70598]
[1735989551488,0.70908,3593.5,3593.4,0.4276]
[1735989551700,0.70908,3593.5,3593.4,0.70598]
[1735989552496,0.70908,3593.5,3593.4,0.4276]
[1735989552696,0.70908,3593.5,3593.4,0.70598]
[1735989555100,0.70908,3593.5,3593.3,5.65350413]
[1735989555101,0.27838,3593.4,3593.3,5.65350413]
[1735989556997,0.27838,3593.4,3593.3,5.37512413]
[1735989557196,0.27838,3593.4,3593.3,5.65351413]
[1735989558897,0.4307,3593.5,3593.3,5.65351413]
[1735989559098,0.70908,3593.5,3593.4,0.27838]
[1735989559496,0.70908,3593.5,3593.3,5.37512413]
[1735989559497,0.4307,3593.5,3593.3,4.3507606]
[1735989559798,0.27838,3593.4,3593.3,4.3507606]
[1735989561002,0.4307,3593.5,3593.1,5.37512413]
[1735989561197,0.2784,3593.2,3593.1,5.65352413]
[1735989562295,0.2784,3593.2,3593.1,5.85626575]
[1735989563004,0.27839,3593.4,3593.3,0.27838]
[1735989563203,0.27839,3593.4,3593.3,1.30274353]
[1735989565105,0.27839,3593.3,3593.2,5.37486525]
[1735989565805,0.27839,3593.3,3593.2,5.65326525]
[1735989566603,0.27839,3593.3,3593.2,1.30276353]
[1735989567004,0.4307,3593.5,3593.3,0.27838]
[1735989567005,0.27839,3593.4,3593.3,0.27838]
[1735989568009,0.27839,3593.4,3593.3,4.62888172]
[1735989570406,0.27839,3593.4,3593.3,4.35050172]
[1735989570606,0.4429,3593.5,3593.2,4.35050172]
[1735989570910,0.70099,3593.3,3593.2,4.35050172]
[1735989573608,3.90879,3593.3,3593.2,4.35050172]
[1735989574010,4.0480588,3593.3,3593.0,5.37486525]
[1735989574313,0.2784,3593.1,3593.0,5.37486525]
[1735989574706,0.7303,3593.1,3593.0,5.37486525]
[1735989580114,0.2784,3593.1,3593.0,5.37486525]
[1735989580712,0.2784,3593.1,3593.0,4.35050172]
[1735989580913,0.2784,3593.1,3593.0,4.558287]
[1735989582419,0.27841,3593.0,3592.9,1.02436353]
[1735989582617,0.69951,3593.0,3592.9,1.02436353]
[1735989583310,0.27841,3593.0,3592.9,1.02436353]
[1735989583719,0.27841,3593.0,3592.9,5.58275486]
[1735989588917,0.27841,3593.0,3592.9,5.86117486]
[1735989589419,0.27841,3593.0,3592.9,4.55839133]
[1735989591130,0.27842,3592.9,3592.8,7.55835799]
[1735989592232,0.27842,3592.9,3592.8,7.83678799]
[1735989592529,0.27842,3592.9,3592.8,12.39474177]
[1735989594434,3.2078,3593.2,3592.8,12.11631177]
[1735989594637,3.4862,3593.2,3593.1,1.02436353]
[1735989595034,3.4862,3593.2,3593.1,1.88436353]
[1735989595535,3.4862,3593.2,3593.1,2.16276353]
[1735989596233,3.4862,3593.2,3593.1,1.88436353]
[1735989599045,0.2784,3593.2,3593.1,1.88436353]
[1735989599242,0.2784,3593.2,3593.1,1.44886353]
[1735989599462,0.69605487,3593.2,3593.1,1.44886353]
[1735989599735,0.69605487,3593.2,3593.1,0.4245]
[1735989600537,0.2784,3593.1,3593.0,4.3546314]
[1735989600724,0.2784,3593.1,3593.0,4.7737314]
[1735989601129,0.2784,3593.1,3593.0,4.3546314]
[1735989601636,0.2784,3593.1,3592.9,4.3546314]
[1735989601637,0.27841,3593.0,3592.9,4.3546314]
[1735989601833,2.58017353,3593.0,3592.9,2.4686314]
[1735989602240,43.38017353,3593.0,3592.9,2.4686314]
[1735989603233,47.32482428,3593.0,3592.2,0.4491]
[1735989603534,3.48627,3592.3,3592.2,0.4491]
[1735989605741,0.27849,3592.0,3591.9,0.4488]
[1735989606242,0.2785,3591.9,3591.8,6.53399446]
[1735989606545,4.3841,3591.9,3591.8,6.53399446]
[1735989607237,5.40846353,3591.9,3591.8,6.53399446]
[1735989607539,0.27852,3591.6,3591.5,1.02436353]
[1735989611937,0.27854,3591.4,3591.3,1.02436353]
[1735989614844,0.27854,3591.4,3591.3,1.30290353]
[1735989617131,0.27854,3591.4,3591.3,1.02436353]
[1735989617332,0.27854,3591.4,3591.3,1.30290353]
[1735989618543,0.27854,3591.4,3591.3,1.02436353]
[1735989620542,0.27854,3591.4,3591.3,1.30290353]
[1735989623134,4.23216353,3591.7,3591.3,1.02436353]
[1735989623346,3.2078,3591.7,3591.5,1.02436353]
[1735989623541,3.48632,3591.7,3591.6,1.54582]
[1735989624745,3.48632,3591.7,3591.6,1.2673]
[1735989629847,4.51068353,3591.7,3591.6,1.2673]
[1735989632448,4.51068353,3591.7,3591.6,0.8323]
[1735989632854,4.51068353,3591.7,3591.6,0.4185]
[1735989633951,0.27854,3591.4,3591.1,1.02436353]
[1735989634152,0.27854,3591.4,3591.3,0.27854]
[1735989634357,0.27855,3591.3,3591.2,0.27855]
[1735989635257,0.27855,3591.3,3591.2,0.4193]
[1735989635453,0.27855,3591.3,3591.2,0.69785]
[1735989638762,0.27855,3591.3,3591.2,0.4193]
[1735989648670,0.27855,3591.3,3591.2,4.91808384]
[1735989649164,0.27855,3591.3,3591.2,5.19663384]
[1735989649865,0.27855,3591.3,3591.2,11.7306283]
[1735989651464,3.48634,3591.4,3591.3,0.27854]
[1735989651670,3.48634,3591.4,3591.3,1.30290353]
[1735989652760,3.48634,3591.4,3591.3,5.80168737]
[1735989654267,3.48634,3591.4,3591.3,5.52314737]
[1735989654485,3.48634,3591.4,3591.3,4.49878384]
[1735989655171,44.28634,3591.4,3591.3,4.49878384]
[1735989655477,3.90420425,3591.4,3591.3,4.49878384]
[1735989656874,3.62566425,3591.4,3591.2,6.54356387]
[1735989657071,0.27854,3591.3,3591.2,6.54356387]
[1735989657973,3.98432201,3591.3,3591.2,4.50341917]
[1735989660277,5.00868554,3591.3,3591.2,4.50341917]
[1735989662671,5.00868554,3591.3,3590.4,7.79866387]
[1735989662672,0.27861,3590.5,3590.4,7.79866387]
[1735989662871,1.30297353,3590.5,3590.4,7.79866387]
[1735989663882,1.30297353,3590.5,3590.4,12.30018198]
[1735989665282,1.30297353,3590.5,3590.4,1.2551]
[1735989666784,1.30297353,3590.5,3590.4,0.4113]
[1735989668684,1.72407353,3590.5,3590.4,0.4113]
[1735989670289,0.27861,3590.4,3590.3,1.02436353]
[1735989672286,0.27862,3590.3,3590.2,0.4529]
[1735989672485,1.30298353,3590.3,3590.2,0.4529]
[1735989674887,0.27864,3590.1,3590.0,6.54356387]
[1735989675084,1.30300353,3590.1,3590.0,6.98256387]
[1735989676678,1.30300353,3590.1,3590.0,0.439]
[1735989678390,1.30300353,3590.1,3590.0,0.71764]
[1735989678581,3.2078,3590.2,3590.0,0.439]
[1735989678789,0.27862,3590.3,3590.2,0.27863]
[1735989678993,2.18900372,3590.5,3590.4,0.27861]
[1735989678994,2.46762372,3590.5,3590.4,0.27861]
[1735989679486,2.18900372,3590.5,3590.4,1.30297353]
[1735989680392,0.27861,3590.5,3590.4,1.30297353]
[1735989680684,1.02436353,3590.7,3590.4,1.02436353]
[1735989680890,0.2786,3590.6,3590.5,0.7297]
[1735989681190,0.2786,3590.6,3590.5,1.1669]
[1735989682492,0.27859,3590.8,3590.7,0.27858]
[1735989683184,2.46758372,3590.9,3590.8,0.27858]
[1735989684387,2.18900372,3590.9,3590.7,0.4239]
[1735989684583,0.27858,3590.8,3590.7,0.70249]
[1735989685092,1.30294353,3590.8,3590.7,0.70249]
[1735989688385,1.30294353,3590.8,3590.7,0.4239]
[1735989688992,1.30294353,3590.8,3590.7,0.70249]
[1735989690598,1.30294353,3590.8,3590.7,0.4239]
[1735989696495,0.2786,3590.6,3590.5,0.4372]
[1735989696702,0.27862,3590.3,3590.2,6.54356387]
[1735989697001,1.30298353,3590.3,3590.2,6.54356387]
[1735989698606,0.27865,3589.9,3589.8,1.46076353]
[1735989700609,0.27865,3589.9,3589.8,1.73942353]
[1735989701214,0.27865,3589.9,3589.8,1.46076353]
[1735989701611,0.27865,3589.9,3589.8,5.96060002]
[1735989703105,0.27865,3589.9,3589.8,1.46076353]
[1735989705510,0.27865,3589.9,3589.8,1.73942353]
[1735989705810,0.27865,3589.9,3589.8,5.96174033]
[1735989706211,0.27865,3589.9,3589.8,6.24040033]
[1735989710716,1.30301353,3590.0,3589.9,0.27865]
[1735989716022,1.02436353,3590.0,3589.9,0.27865]
[1735989717620,1.30300353,3590.0,3589.9,0.27865]
[1735989725520,0.27865,3589.9,3589.8,5.07286884]
[1735989727924,0.27865,3589.9,3589.8,0.71505]
[1735989734125,0.27865,3589.9,3589.8,0.4364]
[1735989734527,0.68945,3589.9,3589.8,0.4364]
[1735989735831,2.87845372,3589.9,3589.8,0.4364]
[1735989738336,0.27866,3589.8,3589.7,4.35781884]
[1735989738525,4.51082353,3589.8,3589.7,4.35781884]
[1735989739130,0.27868,3589.6,3589.5,4.35781884]
[1735989739433,1.30304353,3589.6,3589.5,4.35781884]
[1735989740335,3.4941689,3589.6,3589.5,4.35781884]
[1735989741631,1.30304353,3589.6,3589.5,4.35781884]
[1735989742932,0.27868,3589.5,3589.4,4.35781884]
[1735989743131,1.30304353,3589.5,3589.4,4.35781884]
[1735989744238,1.02436353,3589.5,3589.3,6.96416387]
[1735989744439,0.27869,3589.4,3589.3,6.96416387]
[1735989746136,0.27869,3589.4,3589.3,4.92686607]
[1735989749130,0.27869,3589.4,3589.3,6.2299296]
[1735989749532,0.27869,3589.4,3589.3,6.2299196]
[1735989750437,0.27869,3589.4,3589.3,12.77348347]
[1735989751339,3.2078,3589.5,3589.4,0.27869]
[1735989751536,0.27868,3589.6,3589.5,0.27868]
[1735989751837,2.19126866,3589.7,3589.6,0.27868]
[1735989753133,0.27865,3590.0,3589.6,13.5143759]
[1735989753335,0.27865,3590.0,3589.9,1.02436353]
[1735989753838,0.27865,3590.0,3589.9,1.43886353]
[1735989754040,0.27865,3590.0,3589.9,1.71751353]
[1735989754343,0.27865,3590.0,3589.9,5.9451296]
[1735989754544,0.27865,3590.0,3589.9,6.2237796]
[1735989754740,0.27865,3590.0,3589.9,5.9451296]
[1735989757538,0.27865,3590.0,3589.9,6.2237796]
[1735989757944,0.27865,3590.0,3589.9,5.9451296]
[1735989759947,0.27864,3590.1,3590.0,0.27864]
[1735989760145,0.27864,3590.1,3589.9,6.2237796]
[1735989761143,0.27864,3590.0,3589.9,5.9451296]
[1735989761440,0.27864,3590.0,3589.9,7.97967995]
[1735989762741,0.27864,3590.0,3589.9,1.43886353]
[1735989763043,0.27864,3590.0,3589.9,1.71751353]
[1735989763546,0.27864,3590.0,3589.9,2.15411353]
[1735989763945,0.27864,3590.0,3589.9,11.89479306]
[1735989764645,41.07864,3590.0,3589.9,11.89479306]
[1735989765143,0.27864,3590.0,3589.9,11.89479306]
[1735989765542,0.27864,3590.0,3589.9,0.8511]
[1735989767144,0.27864,3590.0,3589.9,5.21268141]
[1735989768144,0.27864,3590.0,3589.9,0.8511]
[1735989768741,0.27864,3590.0,3589.9,1.12975]
[1735989768946,0.27864,3590.0,3589.9,0.8511]
[1735989769450,0.27864,3590.0,3589.9,5.35381142]
[1735989769652,0.27864,3590.0,3589.9,5.63246142]
[1735989769854,0.27864,3590.0,3589.9,6.65682495]
[1735989770655,0.27864,3590.0,3589.9,6.37817495]
[1735989770857,0.27864,3590.0,3589.9,13.19764137]
[1735989771455,0.27864,3590.1,3590.0,0.27864]
[1735989771655,0.27864,3590.1,3590.0,1.30300353]
[1735989772446,2.46988866,3590.4,3590.3,0.27862]
[1735989773151,2.19126866,3590.4,3590.3,0.72452]
[1735989773959,0.27861,3590.5,3590.4,0.27861]
[1735989774456,0.27861,3590.5,3590.4,1.16301]
[1735989775360,3.48639,3590.7,3590.6,0.2786]
[1735989775660,3.48639,3590.7,3590.6,1.30296353]
[1735989776462,3.2078,3590.7,3590.6,1.30296353]
[1735989776649,3.48639,3590.7,3590.6,1.30296353]
[1735989776853,3.48639,3590.7,3590.6,5.65930681]
[1735989777759,3.2078,3590.7,3590.6,5.65930681]
[1735989778157,2.46982866,3591.1,3591.0,0.27857]
[1735989778370,2.46982866,3591.1,3591.0,1.30293353]
[1735989779466,3.21563219,3591.1,3590.8,1.02436353]
[1735989779668,0.27856,3591.1,3591.0,1.30293353]
[1735989780568,1.30291353,3591.2,3591.1,0.27856]
[1735989780768,0.27856,3591.1,3591.0,1.30292353]
[1735989784266,1.02436353,3591.2,3590.9,0.4298]
[1735989784470,1.02436353,3591.2,3590.9,0.70837]
[1735989784471,0.27857,3591.0,3590.9,0.70837]
[1735989784972,1.13547,3591.1,3591.0,0.27857]
[1735989787575,0.4146,3591.1,3591.0,0.27857]
[1735989788475,0.27856,3591.1,3591.0,1.30293353]
[1735989788668,0.27854,3591.3,3591.2,0.27855]
[1735989788868,0.27856,3591.2,3591.1,0.27855]
[1735989789070,3.48633,3591.5,3591.0,1.02436353]
[1735989789271,3.48633,3591.5,3591.4,1.30290353]
[1735989789678,3.2078,3591.5,3591.2,1.02436353]
[1735989789877,0.27854,3591.4,3591.3,0.27854]
[1735989790376,0.27854,3591.3,3591.2,1.30291353]
[1735989791978,0.27854,3591.4,3591.3,0.27854]
[1735989796276,1.30289353,3591.5,3591.4,0.27854]
[1735989796977,0.27853,3591.5,3591.4,1.30290353]
[1735989797381,0.27853,3591.5,3591.4,0.27854]
[1735989798275,1.30289353,3591.5,3591.4,0.27854]
[1735989803689,0.27855,3591.3,3591.2,0.27854]
[1735989803878,1.02436353,3591.5,3591.1,1.71861353]
[1735989803879,0.27855,3591.2,3591.1,1.71861353]
[1735989804381,0.27854,3591.3,3591.2,0.27854]
[1735989810587,0.4238,3591.4,3591.1,1.44006353]
[1735989810791,0.70234,3591.4,3591.3,0.27854]
[1735989814994,0.27854,3591.4,3591.3,0.27854]
[1735989819898,2.19126866,3591.6,3591.5,0.27853]
[1735989820498,2.19126866,3591.6,3591.5,0.72073]
[1735989822297,2.46978866,3591.6,3591.5,0.72073]
[1735989822702,3.49415219,3591.6,3591.5,0.72073]
[1735989822903,3.49415219,3591.6,3591.5,5.07707328]
[1735989825404,1.30288353,3591.6,3591.5,5.07707328]
[1735989831107,1.30288353,3591.6,3591.5,5.22533265]
[1735989831808,1.73808353,3591.6,3591.5,5.22533265]
[1735989832507,5.02477159,3591.6,3591.5,11.76614907]
[1735989835513,5.44259613,3591.6,3591.5,5.22533265]
[1735989838212,5.44259613,3591.6,3591.5,4.94680265]
[1735989838517,5.44259613,3591.6,3591.5,5.22533265]
[1735989841013,5.44259613,3591.6,3591.5,4.94680265]
[1735989843217,5.44259613,3591.6,3591.5,11.49562674]
[1735989844318,4.4182326,3591.6,3591.5,11.49562674]
[1735989845812,4.4182326,3591.6,3591.5,4.94680265]
[1735989852419,5.44259613,3591.6,3591.5,4.94680265]
[1735989854221,5.44259613,3591.6,3591.5,4.50460265]
[1735989854523,5.44259613,3591.6,3591.5,11.05352494]
[1735989854524,2.15590807,3591.6,3591.5,11.05352494]
[1735989856120,5.84049061,3591.6,3591.5,4.3665359]
[1735989856319,6.11901061,3591.6,3591.5,4.3665359]
[1735989856524,9.32681061,3591.6,3591.5,4.3665359]
[1735989857928,0.27853,3591.5,3591.4,4.3665359]
[1735989858429,1.30289353,3591.5,3591.4,4.3665359]
[1735989859019,42.10289353,3591.5,3591.4,4.3665359]
[1735989859823,0.27856,3591.1,3591.0,4.3665359]
[1735989860021,1.30292353,3591.1,3591.0,4.3665359]
[1735989860430,1.73532353,3591.1,3591.0,4.3665359]
[1735989861029,0.2786,3590.6,3590.5,4.3665359]
[1735989861227,1.30296353,3590.6,3590.5,4.3665359]
[1735989862332,0.27861,3590.5,3590.4,4.8175359]
[1735989863831,0.27861,3590.5,3590.4,0.451]
[1735989864628,1.02436353,3590.6,3590.4,1.47536353]
[1735989864828,0.27861,3590.5,3590.4,1.75397353]
[1735989865034,1.02436353,3590.6,3590.4,1.75397353]
[1735989865334,1.30296353,3590.6,3590.4,1.75397353]
[1735989866228,1.30296353,3590.6,3590.4,6.12050943]
[1735989866733,1.02436353,3590.6,3590.4,4.8175359]
[1735989867035,0.27861,3590.5,3590.4,5.0961459]
[1735989867531,0.27861,3590.5,3590.4,0.72961]
[1735989868235,1.30296353,3590.6,3590.5,0.27861]
[1735989869237,1.30296353,3590.6,3590.4,0.451]
[1735989869533,1.02436353,3590.6,3590.4,0.72961]
[1735989869738,0.27861,3590.5,3590.4,0.72961]
[1735989870634,0.27861,3590.5,3590.4,0.451]
[1735989872337,1.30296353,3590.6,3590.4,0.72961]
[1735989874346,0.27861,3590.5,3590.4,0.72961]
[1735989875943,0.27861,3590.5,3590.4,0.451]
[1735989882345,0.27861,3590.5,3590.4,0.72961]
[1735989883352,0.27861,3590.5,3590.4,0.451]
[1735989884953,0.27861,3590.5,3590.4,0.72961]
[1735989885950,0.27861,3590.5,3590.4,0.451]
[1735989886154,0.27861,3590.5,3590.4,0.72961]
[1735989886354,0.27861,3590.5,3590.4,0.451]
[1735989888555,0.27861,3590.5,3590.4,0.72961]
[1735989897463,0.2786,3590.7,3590.6,0.2786]
[1735989897666,0.2786,3590.6,3590.5,1.30297353]
[1735989898766,0.2786,3590.6,3590.5,1.02436353]
[1735989899063,0.2786,3590.6,3590.5,5.39089943]
[1735989900359,0.2786,3590.6,3590.5,5.66950943]
[1735989901066,2.18993101,3590.9,3590.5,6.46489943]
[1735989901364,3.28489651,3590.9,3590.8,4.51074353]
[1735989902159,3.28489651,3590.9,3590.8,4.93474353]
[1735989902557,5.68277555,3591.2,3591.1,0.27856]
[1735989902558,1.30291353,3591.2,3591.1,0.27856]
[1735989903158,1.02436353,3591.2,3590.8,26.88330889]
[1735989903360,1.30292353,3591.2,3591.1,0.27856]
[1735989903561,3.49286308,3591.2,3591.1,4.64125928]
[1735989903757,3.49285308,3591.2,3591.1,4.64125928]
[1735989905370,3.49285308,3591.2,3591.1,4.36269928]
[1735989906166,7.14235308,3591.2,3591.1,4.36269928]
[1735989906568,47.94235308,3591.2,3591.1,4.36269928]
[1735989907767,0.27858,3590.8,3590.7,4.36269928]
[1735989907961,1.30294353,3590.8,3590.7,4.36269928]
[1735989908868,4.51074353,3590.8,3590.7,4.36269928]
[1735989909064,10.53510706,3590.8,3590.7,1.11659928]
[1735989909369,0.2786,3590.6,3590.5,6.15070333]